[Event "*** SCC Grand Prix: Titled Tuesday Blitz"]
[Site "Chess.com"]
[Date "2020.10.13"]
[Round "8"]
[White "kidagent"]
[Black "JiiHart"]
[Result "1-0"]
[WhiteElo "2279"]
[BlackElo "2076"]
[TimeControl "180+1"]
[EndTime "11:33:27 PDT"]
[Termination "kidagent won on time"]

1. e4 {[%clk 0:03:00.9]} 1... c5 {[%clk 0:02:59.8]} 2. Nf3 {[%clk 0:03:00.6]}
2... Nc6 {[%clk 0:02:59.8]} 3. d4 {[%clk 0:03:00.8]} 3... cxd4 {[%clk
0:02:59.7]} 4. Nxd4 {[%clk 0:03:01.7]} 4... Nf6 {[%clk 0:03:00]} 5. Nc3 {[%clk
0:03:01.6]} 5... d6 {[%clk 0:03:00.1]} 6. Be2 {[%clk 0:02:59.4]} 6... e5 {[%clk
0:02:59.8]} 7. Ndb5 {[%clk 0:02:57.1]} 7... a6 {[%clk 0:02:58.6]} 8. Na3 {[%clk
0:02:57.3]} 8... b5 {[%clk 0:02:58.8]} 9. Nd5 {[%clk 0:02:53.1]} 9... Nxe4
{[%clk 0:02:58.3]} 10. O-O {[%clk 0:02:52.9]} 10... f5 {[%clk 0:02:56.1]} 11.
Bf3 {[%clk 0:02:49.5]} 11... Be6 {[%clk 0:02:49.3]} 12. c4 {[%clk 0:02:46.4]}
12... b4 {[%clk 0:02:17.3]} 13. Nc2 {[%clk 0:02:45.9]} 13... Rb8 {[%clk
0:02:13.4]} 14. Re1 {[%clk 0:02:30.3]} 14... Be7 {[%clk 0:02:12.1]} 15. Bxe4
{[%clk 0:02:27.9]} 15... fxe4 {[%clk 0:02:13]} 16. Rxe4 {[%clk 0:02:27]} 16...
O-O {[%clk 0:02:13]} 17. Nce3 {[%clk 0:02:20.4]} 17... Nd4 {[%clk 0:01:42.7]}
18. Bd2 {[%clk 0:02:08.3]} 18... a5 {[%clk 0:01:32]} 19. Qh5 {[%clk 0:02:03.5]}
19... g6 {[%clk 0:01:24.4]} 20. Qd1 {[%clk 0:02:02.4]} 20... Bg5 {[%clk
0:01:18.8]} 21. b3 {[%clk 0:01:41.6]} 21... Bh6 {[%clk 0:01:17.7]} 22. a3 {[%clk
0:01:37]} 22... Qg5 {[%clk 0:01:04.2]} 23. axb4 {[%clk 0:01:21.7]} 23... Nf3+
{[%clk 0:01:01.4]} 24. Kh1 {[%clk 0:01:20.3]} 24... Nxd2 {[%clk 0:01:01.2]} 25.
Qxd2 {[%clk 0:01:19.3]} 25... axb4 {[%clk 0:00:54.8]} 26. h4 {[%clk 0:01:14.1]}
26... Qh5 {[%clk 0:00:39.7]} 27. Qd1 {[%clk 0:01:11.7]} 27... Rxf2 {[%clk
0:00:29.3]} 28. Qxh5 {[%clk 0:01:10.9]} 28... gxh5 {[%clk 0:00:29.3]} 29. Ra7
{[%clk 0:01:01.6]} 29... Rbf8 {[%clk 0:00:21.4]} 30. Kh2 {[%clk 0:00:53.8]}
30... Bf4+ {[%clk 0:00:19.5]} 31. Nxf4 {[%clk 0:00:53.1]} 31... exf4 {[%clk
0:00:18.5]} 32. Rxe6 {[%clk 0:00:49.2]} 32... fxe3 {[%clk 0:00:18.1]} 33. Rxe3
{[%clk 0:00:48.7]} 33... R2f4 {[%clk 0:00:12.3]} 34. Kh3 {[%clk 0:00:46]} 34...
Rg4 {[%clk 0:00:07.9]} 35. Rb7 {[%clk 0:00:44]} 35... Rff4 {[%clk 0:00:06.8]}
36. Rg3 {[%clk 0:00:41.5]} 36... Kf8 {[%clk 0:00:02.3]} 37. Rxg4 {[%clk
0:00:39.4]} 37... hxg4+ {[%clk 0:00:01.2]} 38. Kg3 {[%clk 0:00:39.6]} 38... Rd4
{[%clk 0:00:01.6]} 39. Rxb4 {[%clk 0:00:39.2]} 39... h5 {[%clk 0:00:01.7]} 40.
Rb7 {[%clk 0:00:37.5]} 1-0

[Event "*** SCC Grand Prix: Titled Tuesday Blitz"]
[Site "Chess.com"]
[Date "2020.10.13"]
[Round "8"]
[White "Mikhail_Golubev"]
[Black "zmeeed67"]
[Result "1-0"]
[WhiteElo "2530"]
[BlackElo "2354"]
[TimeControl "180+1"]
[EndTime "11:33:29 PDT"]
[Termination "Mikhail_Golubev won by resignation"]

1. e4 {[%clk 0:02:51.2]} 1... Nc6 {[%clk 0:02:59.6]} 2. Nf3 {[%clk 0:02:50.3]}
2... d6 {[%clk 0:02:59.6]} 3. d4 {[%clk 0:02:48.2]} 3... Nf6 {[%clk 0:02:59.6]}
4. Nc3 {[%clk 0:02:46.7]} 4... Bg4 {[%clk 0:02:58.7]} 5. d5 {[%clk 0:02:35.6]}
5... Nb8 {[%clk 0:02:56.6]} 6. h3 {[%clk 0:02:27.2]} 6... Bxf3 {[%clk
0:02:52.3]} 7. Qxf3 {[%clk 0:02:26.9]} 7... Nbd7 {[%clk 0:02:52]} 8. Be2 {[%clk
0:02:26.3]} 8... g6 {[%clk 0:02:52]} 9. O-O {[%clk 0:02:25.2]} 9... Bg7 {[%clk
0:02:52]} 10. Re1 {[%clk 0:02:18.1]} 10... c6 {[%clk 0:02:51.8]} 11. dxc6 {[%clk
0:02:00.4]} 11... bxc6 {[%clk 0:02:51.2]} 12. Bf4 {[%clk 0:01:59.3]} 12... O-O
{[%clk 0:02:49.7]} 13. Rad1 {[%clk 0:01:57.8]} 13... Qb6 {[%clk 0:02:42.6]} 14.
b3 {[%clk 0:01:53.7]} 14... Nh5 {[%clk 0:02:34.3]} 15. Na4 {[%clk 0:01:44.1]}
15... Qb7 {[%clk 0:02:07.2]} 16. Bh2 {[%clk 0:01:40.1]} 16... Nb6 {[%clk
0:01:54.5]} 17. Nxb6 {[%clk 0:01:29.7]} 17... axb6 {[%clk 0:01:53.7]} 18. a4
{[%clk 0:01:29.5]} 18... b5 {[%clk 0:01:45.4]} 19. axb5 {[%clk 0:01:27.3]} 19...
cxb5 {[%clk 0:01:45.5]} 20. e5 {[%clk 0:01:24.6]} 20... Qc8 {[%clk 0:00:40.8]}
21. exd6 {[%clk 0:01:22.4]} 21... exd6 {[%clk 0:00:39.6]} 22. Bxd6 {[%clk
0:01:18.8]} 22... Re8 {[%clk 0:00:30.7]} 23. Bxb5 {[%clk 0:01:10]} 23... Rxe1+
{[%clk 0:00:28.2]} 24. Rxe1 {[%clk 0:01:10]} 24... Nf6 {[%clk 0:00:25.7]} 25.
Bc4 {[%clk 0:01:04.9]} 25... Ra7 {[%clk 0:00:16.6]} 26. Re7 {[%clk 0:00:51.7]}
26... Rxe7 {[%clk 0:00:15.5]} 27. Bxe7 {[%clk 0:00:51.2]} 27... Qf5 {[%clk
0:00:12.3]} 28. Qxf5 {[%clk 0:00:49.6]} 28... gxf5 {[%clk 0:00:12.9]} 29. b4
{[%clk 0:00:46.5]} 29... Ne4 {[%clk 0:00:13.2]} 30. b5 {[%clk 0:00:44.6]} 30...
Bd4 {[%clk 0:00:13]} 31. Bh4 {[%clk 0:00:31.3]} 31... Kf8 {[%clk 0:00:12.4]} 32.
Bd3 {[%clk 0:00:29.9]} 32... Ke8 {[%clk 0:00:11.2]} 33. Bxe4 {[%clk 0:00:26.5]}
33... fxe4 {[%clk 0:00:10.7]} 34. c4 {[%clk 0:00:24.6]} 34... Kd7 {[%clk
0:00:10.2]} 35. Bg5 {[%clk 0:00:24.2]} 35... f5 {[%clk 0:00:09.9]} 36. Be3
{[%clk 0:00:23.7]} 1-0

[Event "*** SCC Grand Prix: Titled Tuesday Blitz"]
[Site "Chess.com"]
[Date "2020.10.13"]
[Round "8"]
[White "Mr_Sinigami"]
[Black "1977Ivan"]
[Result "0-1"]
[WhiteElo "2512"]
[BlackElo "2691"]
[TimeControl "180+1"]
[EndTime "11:33:32 PDT"]
[Termination "1977Ivan won on time"]

1. d4 {[%clk 0:03:00.4]} 1... Nf6 {[%clk 0:02:58.9]} 2. Nf3 {[%clk 0:02:59.7]}
2... e6 {[%clk 0:02:56.9]} 3. Bf4 {[%clk 0:02:59.9]} 3... b6 {[%clk 0:02:56]} 4.
e3 {[%clk 0:02:59.9]} 4... Bb7 {[%clk 0:02:56.4]} 5. Be2 {[%clk 0:02:57.5]} 5...
d6 {[%clk 0:02:56.3]} 6. h3 {[%clk 0:02:55.9]} 6... Nbd7 {[%clk 0:02:56.1]} 7.
O-O {[%clk 0:02:55.2]} 7... Qe7 {[%clk 0:02:56.2]} 8. a4 {[%clk 0:02:53.5]} 8...
Ne4 {[%clk 0:02:29.1]} 9. a5 {[%clk 0:02:49.1]} 9... g5 {[%clk 0:02:28.6]} 10.
Bh2 {[%clk 0:02:47.8]} 10... h5 {[%clk 0:02:24.6]} 11. axb6 {[%clk 0:02:11]}
11... axb6 {[%clk 0:02:23.1]} 12. Rxa8+ {[%clk 0:02:09]} 12... Bxa8 {[%clk
0:02:24]} 13. Qd3 {[%clk 0:01:57]} 13... g4 {[%clk 0:02:15.5]} 14. Qa6 {[%clk
0:01:49.6]} 14... Qd8 {[%clk 0:02:05.6]} 15. Nh4 {[%clk 0:01:02.8]} 15... gxh3
{[%clk 0:02:01.5]} 16. g3 {[%clk 0:00:59.6]} 16... Rg8 {[%clk 0:01:58.6]} 17.
Nc3 {[%clk 0:00:50.7]} 17... Nxc3 {[%clk 0:01:43.5]} 18. bxc3 {[%clk 0:00:49.9]}
18... Be4 {[%clk 0:01:42.2]} 19. Nf3 {[%clk 0:00:37.6]} 19... Bh6 {[%clk
0:01:25.2]} 20. Nd2 {[%clk 0:00:36.9]} 20... Bg6 {[%clk 0:01:09]} 21. Ra1 {[%clk
0:00:32.1]} 21... Ke7 {[%clk 0:01:06.2]} 22. Bf3 {[%clk 0:00:28.2]} 22... Nf6
{[%clk 0:01:05.5]} 23. Qb7 {[%clk 0:00:22.7]} 23... Ng4 {[%clk 0:00:54.9]} 24.
Ra7 {[%clk 0:00:20.9]} 24... Kf6 {[%clk 0:00:53.1]} 25. Qxc7 {[%clk 0:00:06.2]}
25... Qxc7 {[%clk 0:00:52.4]} 26. Rxc7 {[%clk 0:00:06.1]} 26... d5 {[%clk
0:00:52.2]} 27. Bxg4 {[%clk 0:00:03.4]} 27... hxg4 {[%clk 0:00:51.6]} 28. Kf1
{[%clk 0:00:03.8]} 28... Ra8 {[%clk 0:00:46.2]} 29. Ke2 {[%clk 0:00:03.1]} 29...
Ra1 {[%clk 0:00:46.1]} 30. f3 {[%clk 0:00:02.6]} 30... Rh1 {[%clk 0:00:44]} 31.
Nf1 {[%clk 0:00:02.7]} 31... gxf3+ {[%clk 0:00:43.8]} 32. Kf2 {[%clk 0:00:02.4]}
32... Bxc2 {[%clk 0:00:42.4]} 33. g4 {[%clk 0:00:02.6]} 33... Be4 {[%clk
0:00:33.3]} 34. Be5+ {[%clk 0:00:02.6]} 34... Kg6 {[%clk 0:00:33.3]} 35. c4
{[%clk 0:00:02.2]} 35... Bg5 {[%clk 0:00:28.6]} 36. Rc8 {[%clk 0:00:02.1]} 36...
Bh4+ {[%clk 0:00:27.7]} 0-1

[Event "*** SCC Grand Prix: Titled Tuesday Blitz"]
[Site "Chess.com"]
[Date "2020.10.13"]
[Round "8"]
[White "Witik"]
[Black "GelmanAlexander"]
[Result "0-1"]
[WhiteElo "2736"]
[BlackElo "2600"]
[TimeControl "180+1"]
[EndTime "11:33:33 PDT"]
[Termination "GelmanAlexander won on time"]

1. e4 {[%clk 0:03:00.6]} 1... c5 {[%clk 0:02:59.4]} 2. Nf3 {[%clk 0:03:00.1]}
2... e6 {[%clk 0:02:59.4]} 3. d4 {[%clk 0:03:00]} 3... cxd4 {[%clk 0:02:59.4]}
4. Nxd4 {[%clk 0:03:00.6]} 4... a6 {[%clk 0:02:57.9]} 5. c4 {[%clk 0:03:00.5]}
5... b6 {[%clk 0:02:56.4]} 6. Nc3 {[%clk 0:02:55.8]} 6... Bb7 {[%clk 0:02:56.4]}
7. a3 {[%clk 0:02:53.4]} 7... d6 {[%clk 0:02:50.7]} 8. f4 {[%clk 0:02:49]} 8...
Nf6 {[%clk 0:02:49.6]} 9. Qd3 {[%clk 0:02:48.4]} 9... Nbd7 {[%clk 0:02:48.3]}
10. b4 {[%clk 0:02:48.3]} 10... g6 {[%clk 0:02:43.1]} 11. Be2 {[%clk 0:02:36.9]}
11... Bg7 {[%clk 0:02:43]} 12. O-O {[%clk 0:02:33.1]} 12... O-O {[%clk 0:02:38]}
13. Be3 {[%clk 0:02:06.4]} 13... Rc8 {[%clk 0:02:36.8]} 14. Rac1 {[%clk
0:02:01]} 14... Qe7 {[%clk 0:02:33]} 15. Nb3 {[%clk 0:01:54.8]} 15... Rfd8
{[%clk 0:02:29.8]} 16. a4 {[%clk 0:01:26.7]} 16... d5 {[%clk 0:02:14]} 17. cxd5
{[%clk 0:01:19.4]} 17... exd5 {[%clk 0:01:44.3]} 18. e5 {[%clk 0:01:18.8]} 18...
Ne4 {[%clk 0:01:41.1]} 19. Nxd5 {[%clk 0:01:05]} 19... Bxd5 {[%clk 0:01:27]} 20.
Qxd5 {[%clk 0:01:05.9]} 20... Ndc5 {[%clk 0:01:26.1]} 21. Qc4 {[%clk 0:00:45.6]}
21... b5 {[%clk 0:01:03.8]} 22. axb5 {[%clk 0:00:45.4]} 22... axb5 {[%clk
0:01:04.2]} 23. Qc2 {[%clk 0:00:38.4]} 23... Nxb3 {[%clk 0:01:01.6]} 24. Qxb3
{[%clk 0:00:38.4]} 24... Rxc1 {[%clk 0:00:56.3]} 25. Rxc1 {[%clk 0:00:37.4]}
25... g5 {[%clk 0:00:52.1]} 26. g3 {[%clk 0:00:21.2]} 26... gxf4 {[%clk
0:00:50.3]} 27. gxf4 {[%clk 0:00:22.1]} 27... Kh8 {[%clk 0:00:36.9]} 28. Bf3
{[%clk 0:00:19.6]} 28... f5 {[%clk 0:00:36.3]} 29. Bxe4 {[%clk 0:00:13.5]} 29...
fxe4 {[%clk 0:00:36.4]} 30. Rd1 {[%clk 0:00:12.2]} 30... Rg8 {[%clk 0:00:33.6]}
31. Kh1 {[%clk 0:00:10.6]} 31... Qh4 {[%clk 0:00:32.2]} 32. Rg1 {[%clk
0:00:10.4]} 32... Qh3 {[%clk 0:00:29.6]} 33. Rg3 {[%clk 0:00:02.2]} 33... Qf1+
{[%clk 0:00:29.2]} 34. Bg1 {[%clk 0:00:02.3]} 34... Qxf4 {[%clk 0:00:28.3]} 35.
Qe3 {[%clk 0:00:02.3]} 35... Bxe5 {[%clk 0:00:22.6]} 36. Rxg8+ {[%clk
0:00:01.4]} 36... Kxg8 {[%clk 0:00:23.5]} 0-1

[Event "*** SCC Grand Prix: Titled Tuesday Blitz"]
[Site "Chess.com"]
[Date "2020.10.13"]
[Round "8"]
[White "GianmarcoVaR"]
[Black "tdf98pantani"]
[Result "0-1"]
[WhiteElo "2599"]
[BlackElo "2724"]
[TimeControl "180+1"]
[EndTime "11:33:33 PDT"]
[Termination "tdf98pantani won by resignation"]

1. d4 {[%clk 0:02:59.7]} 1... d5 {[%clk 0:02:59.1]} 2. c4 {[%clk 0:02:59.6]}
2... e6 {[%clk 0:02:59.5]} 3. g3 {[%clk 0:02:59]} 3... c6 {[%clk 0:02:56.9]} 4.
Nf3 {[%clk 0:02:58.4]} 4... Bb4+ {[%clk 0:02:56.4]} 5. Bd2 {[%clk 0:02:58]} 5...
Bd6 {[%clk 0:02:56.3]} 6. Qc2 {[%clk 0:02:56.9]} 6... f5 {[%clk 0:02:56.4]} 7.
Bg2 {[%clk 0:02:54.5]} 7... Nf6 {[%clk 0:02:56.5]} 8. Bf4 {[%clk 0:02:54.3]}
8... Bxf4 {[%clk 0:02:54.1]} 9. gxf4 {[%clk 0:02:54.6]} 9... O-O {[%clk
0:02:53.8]} 10. e3 {[%clk 0:02:50.9]} 10... Bd7 {[%clk 0:02:53.1]} 11. Nbd2
{[%clk 0:02:50]} 11... Be8 {[%clk 0:02:52.8]} 12. Ne5 {[%clk 0:02:48.5]} 12...
Nbd7 {[%clk 0:02:52.2]} 13. O-O-O {[%clk 0:02:43.1]} 13... Qa5 {[%clk
0:02:46.1]} 14. Kb1 {[%clk 0:02:42]} 14... Nxe5 {[%clk 0:02:46.3]} 15. fxe5
{[%clk 0:02:41.7]} 15... Ne4 {[%clk 0:02:46.4]} 16. Nb3 {[%clk 0:02:39.3]} 16...
Qb4 {[%clk 0:02:41]} 17. c5 {[%clk 0:02:22.4]} 17... f4 {[%clk 0:02:37.1]} 18.
f3 {[%clk 0:02:19.4]} 18... fxe3 {[%clk 0:02:32.3]} 19. fxe4 {[%clk 0:01:48.1]}
19... Rf2 {[%clk 0:02:30.3]} 20. Qc3 {[%clk 0:01:45.5]} 20... Qxc3 {[%clk
0:02:27.7]} 21. bxc3 {[%clk 0:01:46.4]} 21... Rxg2 {[%clk 0:02:27.8]} 22. exd5
{[%clk 0:01:46.6]} 22... cxd5 {[%clk 0:02:14.3]} 23. Rde1 {[%clk 0:01:45.9]}
23... e2 {[%clk 0:02:13.5]} 24. Kc2 {[%clk 0:01:44.9]} 24... Bh5 {[%clk
0:02:03.2]} 25. Kd2 {[%clk 0:01:41.9]} 25... Rf8 {[%clk 0:02:02.2]} 26. Nc1
{[%clk 0:01:36.1]} 26... Rf1 {[%clk 0:01:45]} 27. a4 {[%clk 0:01:28.9]} 27...
Rgf2 {[%clk 0:01:27]} 28. Nd3 {[%clk 0:00:39.4]} 28... Rxh1 {[%clk 0:01:15.4]}
29. Nxf2 {[%clk 0:00:37.6]} 29... Rxh2 {[%clk 0:01:15.2]} 30. Nd3 {[%clk
0:00:33.2]} 30... Bg4 {[%clk 0:01:12.7]} 31. a5 {[%clk 0:00:28.7]} 31... a6
{[%clk 0:01:12.1]} 32. Nb4 {[%clk 0:00:28.7]} 32... Rf2 {[%clk 0:01:04.7]} 33.
c6 {[%clk 0:00:28]} 33... Rf7 {[%clk 0:00:59.1]} 34. Rb1 {[%clk 0:00:18.5]}
34... h5 {[%clk 0:00:52.6]} 35. Nxd5 {[%clk 0:00:07.9]} 35... bxc6 {[%clk
0:00:47.1]} 36. Nb4 {[%clk 0:00:04.3]} 36... h4 {[%clk 0:00:41.6]} 37. Nxa6
{[%clk 0:00:01.6]} 37... Ra7 {[%clk 0:00:40.4]} 38. Rb6 {[%clk 0:00:02.1]} 38...
h3 {[%clk 0:00:39.8]} 39. Rxc6 {[%clk 0:00:01.1]} 39... h2 {[%clk 0:00:39.3]}
40. Rc8+ {[%clk 0:00:01.5]} 40... Kh7 {[%clk 0:00:39]} 0-1

[Event "*** SCC Grand Prix: Titled Tuesday Blitz"]
[Site "Chess.com"]
[Date "2020.10.13"]
[Round "8"]
[White "m_ezat"]
[Black "Kaua18"]
[Result "1-0"]
[WhiteElo "2531"]
[BlackElo "2355"]
[TimeControl "180+1"]
[EndTime "11:33:34 PDT"]
[Termination "m_ezat won on time"]

1. d4 {[%clk 0:03:00.9]} 1... Nf6 {[%clk 0:02:59.9]} 2. c4 {[%clk 0:03:01.4]}
2... e6 {[%clk 0:03:00.3]} 3. Nc3 {[%clk 0:03:02]} 3... Bb4 {[%clk 0:03:00.4]}
4. e3 {[%clk 0:03:02.5]} 4... O-O {[%clk 0:03:00.7]} 5. a3 {[%clk 0:03:03]} 5...
Bxc3+ {[%clk 0:02:59.5]} 6. bxc3 {[%clk 0:03:03.7]} 6... d5 {[%clk 0:03:00.1]}
7. cxd5 {[%clk 0:03:01.8]} 7... exd5 {[%clk 0:03:01]} 8. Bd3 {[%clk 0:03:02.1]}
8... Re8 {[%clk 0:03:01.4]} 9. f3 {[%clk 0:03:00.8]} 9... c5 {[%clk 0:03:01.7]}
10. Ne2 {[%clk 0:03:01.1]} 10... Nc6 {[%clk 0:02:58.8]} 11. O-O {[%clk
0:03:01.1]} 11... a5 {[%clk 0:02:45.2]} 12. Ng3 {[%clk 0:02:59.2]} 12... h5
{[%clk 0:02:43.1]} 13. Ra2 {[%clk 0:02:57]} 13... b6 {[%clk 0:02:38.6]} 14. Re2
{[%clk 0:02:53.9]} 14... Ba6 {[%clk 0:02:35.8]} 15. Bxa6 {[%clk 0:02:52.6]}
15... Rxa6 {[%clk 0:02:36.7]} 16. Bb2 {[%clk 0:02:52]} 16... Ra7 {[%clk
0:02:28.7]} 17. e4 {[%clk 0:02:25.3]} 17... g6 {[%clk 0:02:13.6]} 18. e5 {[%clk
0:02:19.6]} 18... Nh7 {[%clk 0:02:02.3]} 19. f4 {[%clk 0:02:19.1]} 19... h4
{[%clk 0:01:59.4]} 20. Nh1 {[%clk 0:02:17.9]} 20... Ne7 {[%clk 0:01:59.6]} 21.
g4 {[%clk 0:02:06.2]} 21... hxg3 {[%clk 0:01:52.4]} 22. Nxg3 {[%clk 0:02:04.4]}
22... Qd7 {[%clk 0:01:47.1]} 23. f5 {[%clk 0:02:03.4]} 23... Nxf5 {[%clk
0:01:46.3]} 24. Nxf5 {[%clk 0:02:03.1]} 24... gxf5 {[%clk 0:01:47.2]} 25. Rg2+
{[%clk 0:02:00.4]} 25... Kh8 {[%clk 0:01:47.1]} 26. c4 {[%clk 0:01:51.4]} 26...
Re6 {[%clk 0:01:13.5]} 27. Qh5 {[%clk 0:00:54.5]} 27... dxc4 {[%clk 0:00:41.8]}
28. d5 {[%clk 0:00:52.6]} 28... Qxd5 {[%clk 0:00:36.1]} 29. Rd1 {[%clk
0:00:51.6]} 29... Qa8 {[%clk 0:00:13.7]} 30. Qh4 {[%clk 0:00:47.2]} 30... Rae7
{[%clk 0:00:07.6]} 31. Rg3 {[%clk 0:00:31.3]} 31... Qe4 {[%clk 0:00:05.6]} 32.
Rd8+ {[%clk 0:00:29.7]} 32... Re8 {[%clk 0:00:06]} 33. Rxe8+ {[%clk 0:00:30]}
33... Rxe8 {[%clk 0:00:06.9]} 34. e6+ {[%clk 0:00:30.4]} 34... c3 {[%clk
0:00:01.4]} 35. Bxc3+ {[%clk 0:00:30.2]} 1-0

[Event "*** SCC Grand Prix: Titled Tuesday Blitz"]
[Site "Chess.com"]
[Date "2020.10.13"]
[Round "8"]
[White "Aygehovit1992"]
[Black "FairChess_on_YouTube"]
[Result "1-0"]
[WhiteElo "2644"]
[BlackElo "2959"]
[TimeControl "180+1"]
[EndTime "11:33:36 PDT"]
[Termination "Aygehovit1992 won on time"]

1. e4 {[%clk 0:02:59.4]} 1... c5 {[%clk 0:02:52.3]} 2. Nc3 {[%clk 0:02:58.6]}
2... a6 {[%clk 0:02:51.8]} 3. f4 {[%clk 0:02:57.3]} 3... b5 {[%clk 0:02:51.7]}
4. Nf3 {[%clk 0:02:57.7]} 4... Bb7 {[%clk 0:02:52]} 5. a3 {[%clk 0:02:52.1]}
5... e6 {[%clk 0:02:46.8]} 6. d4 {[%clk 0:02:48.3]} 6... b4 {[%clk 0:02:45.7]}
7. axb4 {[%clk 0:02:23]} 7... cxb4 {[%clk 0:02:46.6]} 8. Ne2 {[%clk 0:02:23.6]}
8... Bxe4 {[%clk 0:02:46.4]} 9. Ng3 {[%clk 0:02:24.3]} 9... Bd5 {[%clk
0:02:45.3]} 10. c4 {[%clk 0:02:21.7]} 10... bxc3 {[%clk 0:02:44.4]} 11. bxc3
{[%clk 0:02:22.6]} 11... Nf6 {[%clk 0:02:44.4]} 12. Bd3 {[%clk 0:02:12]} 12...
Be7 {[%clk 0:02:33.1]} 13. O-O {[%clk 0:02:10.7]} 13... O-O {[%clk 0:02:32.6]}
14. f5 {[%clk 0:02:05.6]} 14... Nc6 {[%clk 0:02:23.6]} 15. Ne5 {[%clk 0:01:57]}
15... Qc7 {[%clk 0:02:15.9]} 16. Ng4 {[%clk 0:01:29]} 16... e5 {[%clk
0:02:04.7]} 17. Nxf6+ {[%clk 0:01:17.1]} 17... Bxf6 {[%clk 0:02:04.5]} 18. Nh5
{[%clk 0:01:17.3]} 18... exd4 {[%clk 0:01:46.2]} 19. Nxf6+ {[%clk 0:01:11.1]}
19... gxf6 {[%clk 0:01:45.7]} 20. c4 {[%clk 0:01:11]} 20... Ne5 {[%clk
0:01:44.1]} 21. cxd5 {[%clk 0:01:03.3]} 21... Kh8 {[%clk 0:01:43.4]} 22. Ba3
{[%clk 0:00:55.6]} 22... Rg8 {[%clk 0:01:41.2]} 23. Be7 {[%clk 0:00:52.6]} 23...
Rxg2+ {[%clk 0:00:23.2]} 24. Kxg2 {[%clk 0:00:49]} 24... Rg8+ {[%clk 0:00:23.6]}
25. Kh3 {[%clk 0:00:31.8]} 25... Ng4 {[%clk 0:00:10.2]} 26. Qxg4 {[%clk
0:00:28.7]} 26... Rxg4 {[%clk 0:00:09.6]} 27. Bxf6+ {[%clk 0:00:24.3]} 27... Kg8
{[%clk 0:00:10.2]} 28. Kxg4 {[%clk 0:00:23.3]} 28... Qxh2 {[%clk 0:00:10.7]} 29.
Rg1 {[%clk 0:00:22.4]} 29... h5+ {[%clk 0:00:04]} 30. Kf3+ {[%clk 0:00:20.3]}
30... Kf8 {[%clk 0:00:03.9]} 31. Bxd4 {[%clk 0:00:17.7]} 31... Qd2 {[%clk
0:00:01.7]} 32. Rad1 {[%clk 0:00:16.8]} 32... Qb4 {[%clk 0:00:01.2]} 33. f6
{[%clk 0:00:13.3]} 1-0

[Event "*** SCC Grand Prix: Titled Tuesday Blitz"]
[Site "Chess.com"]
[Date "2020.10.13"]
[Round "8"]
[White "Julianos82"]
[Black "Natalya_Buksa"]
[Result "0-1"]
[WhiteElo "2327"]
[BlackElo "2522"]
[TimeControl "180+1"]
[EndTime "11:33:41 PDT"]
[Termination "Natalya_Buksa won by resignation"]

1. d4 {[%clk 0:03:00.9]} 1... d5 {[%clk 0:02:59.1]} 2. Bf4 {[%clk 0:02:59.6]}
2... Nf6 {[%clk 0:02:58.6]} 3. e3 {[%clk 0:02:58.4]} 3... g6 {[%clk 0:02:59.1]}
4. c4 {[%clk 0:02:57.4]} 4... Bg7 {[%clk 0:03:00]} 5. Nc3 {[%clk 0:02:56.3]}
5... O-O {[%clk 0:02:51.5]} 6. Nf3 {[%clk 0:02:55.4]} 6... c5 {[%clk 0:02:50.9]}
7. Rc1 {[%clk 0:02:48.7]} 7... cxd4 {[%clk 0:02:49]} 8. Nxd4 {[%clk 0:02:45.3]}
8... Nc6 {[%clk 0:02:49.5]} 9. Nxc6 {[%clk 0:02:41.2]} 9... bxc6 {[%clk
0:02:50.4]} 10. cxd5 {[%clk 0:02:41.2]} 10... cxd5 {[%clk 0:02:47.5]} 11. Be5
{[%clk 0:02:37.5]} 11... Bb7 {[%clk 0:02:45.8]} 12. Qd4 {[%clk 0:02:32.5]} 12...
Nh5 {[%clk 0:02:42.2]} 13. Be2 {[%clk 0:02:27.3]} 13... Bxe5 {[%clk 0:02:38.2]}
14. Qxe5 {[%clk 0:02:28.2]} 14... Ng7 {[%clk 0:02:38.8]} 15. Bf3 {[%clk
0:02:13.2]} 15... f6 {[%clk 0:02:06.1]} 16. Qd4 {[%clk 0:01:41]} 16... e6 {[%clk
0:02:02.9]} 17. O-O {[%clk 0:01:39.8]} 17... Qd7 {[%clk 0:02:02.1]} 18. Rfd1
{[%clk 0:01:37.3]} 18... Nf5 {[%clk 0:01:59.5]} 19. Qd2 {[%clk 0:01:30.1]} 19...
Rfd8 {[%clk 0:01:54.4]} 20. g3 {[%clk 0:01:25.9]} 20... Qe7 {[%clk 0:01:48.3]}
21. Qe2 {[%clk 0:01:23.9]} 21... Nd6 {[%clk 0:01:45.6]} 22. e4 {[%clk
0:01:22.1]} 22... dxe4 {[%clk 0:01:38.7]} 23. Nxe4 {[%clk 0:01:23]} 23... Nxe4
{[%clk 0:01:39.1]} 24. Bxe4 {[%clk 0:01:23.5]} 24... Bxe4 {[%clk 0:01:39]} 25.
Qxe4 {[%clk 0:01:24.3]} 25... Rac8 {[%clk 0:01:36.3]} 26. Kg2 {[%clk 0:01:22.4]}
26... Rxc1 {[%clk 0:01:29.1]} 27. Rxc1 {[%clk 0:01:23.3]} 27... Kg7 {[%clk
0:01:29.3]} 28. Rc6 {[%clk 0:01:18.2]} 28... e5 {[%clk 0:01:29.4]} 29. Qc4
{[%clk 0:01:16.1]} 29... f5 {[%clk 0:01:16.6]} 30. h4 {[%clk 0:01:07]} 30... e4
{[%clk 0:01:14.3]} 31. h5 {[%clk 0:00:57.4]} 31... e3 {[%clk 0:01:11.9]} 32. Rc7
{[%clk 0:00:52.5]} 32... Rd7 {[%clk 0:01:11.3]} 33. Qd4+ {[%clk 0:00:51.9]}
33... Rxd4 {[%clk 0:01:06.9]} 34. Rxe7+ {[%clk 0:00:52.8]} 34... Kf6 {[%clk
0:01:07.4]} 35. Rxe3 {[%clk 0:00:52.2]} 35... gxh5 {[%clk 0:01:04.1]} 36. Ra3
{[%clk 0:00:51]} 36... Rd7 {[%clk 0:01:03.4]} 37. Ra6+ {[%clk 0:00:49.9]} 37...
Kg5 {[%clk 0:01:03.6]} 38. Kh3 {[%clk 0:00:41]} 38... h4 {[%clk 0:01:00.5]} 39.
gxh4+ {[%clk 0:00:34.8]} 39... Kf4 {[%clk 0:01:00.9]} 40. Kg2 {[%clk 0:00:32.6]}
40... Rg7+ {[%clk 0:00:59.2]} 41. Kf1 {[%clk 0:00:31.3]} 41... Kg4 {[%clk
0:00:59.4]} 42. Ra4+ {[%clk 0:00:30.4]} 42... f4 {[%clk 0:00:57.6]} 43. Ke2
{[%clk 0:00:29.9]} 43... Re7+ {[%clk 0:00:57.9]} 44. Kd3 {[%clk 0:00:24.9]}
44... Kf3 {[%clk 0:00:56.9]} 45. h5 {[%clk 0:00:25.1]} 45... Rf7 {[%clk
0:00:56.8]} 46. b4 {[%clk 0:00:17.2]} 46... Kxf2 {[%clk 0:00:56.5]} 47. b5
{[%clk 0:00:17.9]} 47... f3 {[%clk 0:00:56.4]} 48. Rb4 {[%clk 0:00:17.6]} 48...
Kg3 {[%clk 0:00:55.2]} 49. a4 {[%clk 0:00:15.3]} 49... f2 {[%clk 0:00:55.2]} 50.
Rb1 {[%clk 0:00:15.9]} 50... f1=Q+ {[%clk 0:00:45]} 51. Rxf1 {[%clk 0:00:15.9]}
51... Rxf1 {[%clk 0:00:45.9]} 52. a5 {[%clk 0:00:15.6]} 52... Ra1 {[%clk
0:00:45.5]} 0-1